[Event "*** Titled Tuesday Blitz"]
[Site "Chess.com"]
[Date "2019.07.02"]
[Round "2"]
[White "m3alam"]
[Black "Zq1"]
[Result "1-0"]
[WhiteElo "2352"]
[BlackElo "2549"]
[TimeControl "180+2"]
[EndTime "13:22:15 PDT"]
[Termination "m3alam won by resignation"]

1. Nf3 {[%clk 0:03:01.9]} 1... Nf6 {[%clk 0:03:00.6]} 2. g3 {[%clk 0:02:59.3]}
2... d5 {[%clk 0:03:01]} 3. Bg2 {[%clk 0:02:54.6]} 3... c6 {[%clk 0:03:02.1]} 4.
d4 {[%clk 0:02:51.3]} 4... Bf5 {[%clk 0:03:00.5]} 5. Nh4 {[%clk 0:02:30.4]} 5...
Be4 {[%clk 0:02:56.9]} 6. f3 {[%clk 0:02:28.5]} 6... Bg6 {[%clk 0:02:57.6]} 7.
Nxg6 {[%clk 0:02:26.3]} 7... hxg6 {[%clk 0:02:58.3]} 8. e4 {[%clk 0:02:23.5]}
8... dxe4 {[%clk 0:02:47.2]} 9. fxe4 {[%clk 0:02:25.4]} 9... e5 {[%clk
0:02:48.3]} 10. c3 {[%clk 0:02:20.8]} 10... Bd6 {[%clk 0:02:40.2]} 11. O-O
{[%clk 0:02:18.7]} 11... Qd7 {[%clk 0:02:21.6]} 12. Na3 {[%clk 0:02:13.3]} 12...
b5 {[%clk 0:02:10.4]} 13. Bg5 {[%clk 0:02:07.9]} 13... Na6 {[%clk 0:01:59.7]}
14. Nc2 {[%clk 0:02:04.7]} 14... c5 {[%clk 0:01:53.1]} 15. Ne3 {[%clk
0:02:01.3]} 15... cxd4 {[%clk 0:01:49.6]} 16. Bxf6 {[%clk 0:01:58.5]} 16... gxf6
{[%clk 0:01:21.6]} 17. cxd4 {[%clk 0:01:54.1]} 17... exd4 {[%clk 0:01:20.9]} 18.
Nd5 {[%clk 0:01:54.6]} 18... Be5 {[%clk 0:01:17.2]} 19. Nxf6+ {[%clk 0:01:50.7]}
19... Bxf6 {[%clk 0:01:17.8]} 20. Rxf6 {[%clk 0:01:51.9]} 20... Nc5 {[%clk
0:01:06]} 21. e5 {[%clk 0:01:52.5]} 21... Rc8 {[%clk 0:01:03.8]} 22. Rd6 {[%clk
0:01:48.9]} 22... Qe7 {[%clk 0:01:01.2]} 23. Qxd4 {[%clk 0:01:48.8]} 23... O-O
{[%clk 0:00:53.2]} 24. Bd5 {[%clk 0:01:45.7]} 24... Ne6 {[%clk 0:00:51.8]} 25.
Qd3 {[%clk 0:01:42.2]} 25... Qg5 {[%clk 0:00:31.9]} 26. h4 {[%clk 0:01:33.2]}
26... Qg4 {[%clk 0:00:20.3]} 27. Rf1 {[%clk 0:01:29.6]} 27... Nd4 {[%clk
0:00:11.9]} 1-0

[Event "*** Titled Tuesday Blitz"]
[Site "Chess.com"]
[Date "2019.07.02"]
[Round "2"]
[White "fish7728"]
[Black "ozates"]
[Result "0-1"]
[WhiteElo "2240"]
[BlackElo "2306"]
[TimeControl "180+2"]
[EndTime "13:22:21 PDT"]
[Termination "ozates won by resignation"]

1. d4 {[%clk 0:03:01.9]} 1... d5 {[%clk 0:02:59.2]} 2. c4 {[%clk 0:03:01.8]}
2... c6 {[%clk 0:02:59.1]} 3. Nc3 {[%clk 0:03:01.9]} 3... Nf6 {[%clk 0:02:59.7]}
4. cxd5 {[%clk 0:03:02.6]} 4... cxd5 {[%clk 0:03:01.1]} 5. Bf4 {[%clk
0:03:03.1]} 5... Nc6 {[%clk 0:03:00.7]} 6. e3 {[%clk 0:03:03.9]} 6... Ne4 {[%clk
0:02:54.1]} 7. Nxe4 {[%clk 0:02:21.8]} 7... dxe4 {[%clk 0:02:54.7]} 8. Ne2
{[%clk 0:02:23.5]} 8... g5 {[%clk 0:02:44.6]} 9. Bg3 {[%clk 0:02:21.3]} 9... e5
{[%clk 0:02:27.7]} 10. d5 {[%clk 0:01:59.2]} 10... Nb4 {[%clk 0:02:20.7]} 11.
Nc3 {[%clk 0:01:53.9]} 11... Bd6 {[%clk 0:01:47.1]} 12. a3 {[%clk 0:01:15]}
12... Na6 {[%clk 0:00:29.9]} 13. Bb5+ {[%clk 0:01:14.4]} 13... Bd7 {[%clk
0:00:30.5]} 14. Bxd7+ {[%clk 0:01:15.2]} 14... Qxd7 {[%clk 0:00:32.4]} 15. Nxe4
{[%clk 0:01:16.3]} 15... Qe7 {[%clk 0:00:31.6]} 16. Qa4+ {[%clk 0:01:04.3]}
16... Kf8 {[%clk 0:00:31.9]} 17. O-O {[%clk 0:01:00.1]} 17... h5 {[%clk
0:00:31.9]} 18. Nxd6 {[%clk 0:00:50.6]} 18... Qxd6 {[%clk 0:00:33.8]} 19. h4
{[%clk 0:00:48.7]} 19... Nc5 {[%clk 0:00:33.1]} 20. Qe4 {[%clk 0:00:37.2]} 20...
Nxe4 {[%clk 0:00:33.5]} 0-1

[Event "*** Titled Tuesday Blitz"]
[Site "Chess.com"]
[Date "2019.07.02"]
[Round "2"]
[White "3f32"]
[Black "Kawhi_Leonard2"]
[Result "1-0"]
[WhiteElo "2458"]
[BlackElo "2308"]
[TimeControl "180+2"]
[EndTime "13:22:22 PDT"]
[Termination "3f32 won by resignation"]

1. d4 {[%clk 0:03:01.9]} 1... Nf6 {[%clk 0:03:00.3]} 2. Nf3 {[%clk 0:03:01.7]}
2... e6 {[%clk 0:03:01]} 3. Bf4 {[%clk 0:03:02.6]} 3... d5 {[%clk 0:03:01.1]} 4.
e3 {[%clk 0:03:01.7]} 4... Bd6 {[%clk 0:03:01.8]} 5. Bg3 {[%clk 0:02:59.9]} 5...
O-O {[%clk 0:03:02.1]} 6. Nbd2 {[%clk 0:02:55.5]} 6... c5 {[%clk 0:03:03]} 7. c3
{[%clk 0:02:54.6]} 7... Nc6 {[%clk 0:03:04.1]} 8. Bb5 {[%clk 0:02:54.4]} 8...
Be7 {[%clk 0:02:58.9]} 9. O-O {[%clk 0:02:49.7]} 9... Nh5 {[%clk 0:02:57.4]} 10.
Bxc6 {[%clk 0:02:48.3]} 10... Nxg3 {[%clk 0:02:57.6]} 11. hxg3 {[%clk
0:02:19.8]} 11... bxc6 {[%clk 0:02:56.7]} 12. Qa4 {[%clk 0:02:20]} 12... Qb6
{[%clk 0:02:53.3]} 13. Rfb1 {[%clk 0:01:41.4]} 13... Ba6 {[%clk 0:02:44.9]} 14.
Ne5 {[%clk 0:01:41.1]} 14... Rfc8 {[%clk 0:02:44.6]} 15. Nd7 {[%clk 0:01:23.3]}
15... Qb5 {[%clk 0:02:32.5]} 16. Qa3 {[%clk 0:01:21.6]} 16... Qe2 {[%clk
0:01:59.7]} 17. Nf3 {[%clk 0:01:12.6]} 17... Qb5 {[%clk 0:00:58.2]} 18. Nd2
{[%clk 0:00:57.7]} 18... Qd3 {[%clk 0:00:45.9]} 19. Nb3 {[%clk 0:00:54]} 19...
c4 {[%clk 0:00:27.8]} 20. Qxa6 {[%clk 0:00:39.5]} 1-0

[Event "*** Titled Tuesday Blitz"]
[Site "Chess.com"]
[Date "2019.07.02"]
[Round "2"]
[White "Nightlord1"]
[Black "TangyTacos"]
[Result "1-0"]
[WhiteElo "2127"]
[BlackElo "1828"]
[TimeControl "180+2"]
[EndTime "13:22:30 PDT"]
[Termination "Nightlord1 won by resignation"]

1. e4 {[%clk 0:03:00.5]} 1... c6 {[%clk 0:02:56.4]} 2. d4 {[%clk 0:03:01.3]}
2... d5 {[%clk 0:02:56.6]} 3. Nc3 {[%clk 0:03:02.9]} 3... dxe4 {[%clk
0:02:57.6]} 4. Nxe4 {[%clk 0:03:03.8]} 4... Nf6 {[%clk 0:02:59.2]} 5. Nxf6+
{[%clk 0:03:04.1]} 5... exf6 {[%clk 0:03:01.1]} 6. c3 {[%clk 0:03:03.8]} 6...
Bd6 {[%clk 0:03:02.2]} 7. Bd3 {[%clk 0:03:03.6]} 7... O-O {[%clk 0:03:02.2]} 8.
Ne2 {[%clk 0:03:04.9]} 8... Re8 {[%clk 0:03:02.4]} 9. Qc2 {[%clk 0:03:06]} 9...
h5 {[%clk 0:02:59.9]} 10. Be3 {[%clk 0:03:07.2]} 10... Nd7 {[%clk 0:02:59.7]}
11. O-O-O {[%clk 0:02:57.3]} 11... Nf8 {[%clk 0:03:00.6]} 12. Kb1 {[%clk
0:02:55.5]} 12... Be6 {[%clk 0:03:00.2]} 13. c4 {[%clk 0:02:54.4]} 13... b5
{[%clk 0:02:37.1]} 14. d5 {[%clk 0:02:46.3]} 14... cxd5 {[%clk 0:02:33.1]} 15.
c5 {[%clk 0:02:43.6]} 15... Rc8 {[%clk 0:02:30.6]} 16. Bxb5 {[%clk 0:02:42.5]}
16... Nd7 {[%clk 0:02:09.3]} 17. c6 {[%clk 0:02:23.5]} 17... Nb6 {[%clk
0:01:48.7]} 18. Nd4 {[%clk 0:02:22]} 18... Bg4 {[%clk 0:01:32.3]} 19. Rc1 {[%clk
0:02:15.5]} 19... Qe7 {[%clk 0:01:22]} 20. Rhe1 {[%clk 0:02:08.2]} 20... Qe4
{[%clk 0:01:09.1]} 21. Qxe4 {[%clk 0:02:05.6]} 21... dxe4 {[%clk 0:01:07.1]} 22.
h3 {[%clk 0:02:04.9]} 22... Be6 {[%clk 0:01:06.3]} 23. Ba6 {[%clk 0:01:59.5]}
23... Ra8 {[%clk 0:00:44.9]} 24. Nxe6 {[%clk 0:01:54.5]} 24... fxe6 {[%clk
0:00:43.7]} 25. c7 {[%clk 0:01:55.8]} 25... Bxc7 {[%clk 0:00:11.2]} 26. Rxc7
{[%clk 0:01:55.8]} 26... Nd5 {[%clk 0:00:12.5]} 27. Rb7 {[%clk 0:01:43.6]} 27...
f5 {[%clk 0:00:13]} 28. g3 {[%clk 0:01:42.8]} 28... h4 {[%clk 0:00:10.7]} 29.
Bd4 {[%clk 0:01:39.5]} 29... hxg3 {[%clk 0:00:11.1]} 30. Rxg7+ {[%clk
0:01:39.5]} 30... Kf8 {[%clk 0:00:12.5]} 31. Rxg3 {[%clk 0:01:37.2]} 31... e5
{[%clk 0:00:10.5]} 32. Bc5+ {[%clk 0:01:35.8]} 32... Kf7 {[%clk 0:00:10.9]} 33.
Bc4 {[%clk 0:01:34.5]} 1-0

[Event "*** Titled Tuesday Blitz"]
[Site "Chess.com"]
[Date "2019.07.02"]
[Round "2"]
[White "Korchmar_Vasiliy"]
[Black "Zarikovs1999"]
[Result "1-0"]
[WhiteElo "2760"]
[BlackElo "2551"]
[TimeControl "180+2"]
[EndTime "13:22:31 PDT"]
[Termination "Korchmar_Vasiliy won by resignation"]

1. d4 {[%clk 0:03:01.5]} 1... Nf6 {[%clk 0:02:59.7]} 2. c4 {[%clk 0:03:02.9]}
2... c5 {[%clk 0:02:57.3]} 3. d5 {[%clk 0:03:03.9]} 3... b5 {[%clk 0:02:55.5]}
4. cxb5 {[%clk 0:03:04.7]} 4... a6 {[%clk 0:02:56.8]} 5. bxa6 {[%clk 0:03:06]}
5... g6 {[%clk 0:02:58.2]} 6. Nc3 {[%clk 0:03:06.9]} 6... Bg7 {[%clk 0:02:59.5]}
7. e4 {[%clk 0:03:07.7]} 7... O-O {[%clk 0:03:00.9]} 8. Nf3 {[%clk 0:03:07.7]}
8... Qa5 {[%clk 0:03:01.7]} 9. Bd2 {[%clk 0:02:53.8]} 9... Bxa6 {[%clk
0:03:00.3]} 10. Be2 {[%clk 0:02:55.1]} 10... Bxe2 {[%clk 0:02:55]} 11. Qxe2
{[%clk 0:02:57]} 11... Qa6 {[%clk 0:02:51.4]} 12. a4 {[%clk 0:02:56.5]} 12... e5
{[%clk 0:02:50.4]} 13. Nb5 {[%clk 0:02:46.1]} 13... Nxe4 {[%clk 0:02:16.7]} 14.
O-O {[%clk 0:02:12.6]} 14... Nxd2 {[%clk 0:01:52.8]} 15. Nxd2 {[%clk 0:02:14]}
15... d6 {[%clk 0:01:52.3]} 16. Nc4 {[%clk 0:02:11.4]} 16... Rd8 {[%clk
0:01:50.5]} 17. Nc7 {[%clk 0:02:11.5]} 17... Qb7 {[%clk 0:01:47.5]} 18. Nxa8
{[%clk 0:02:12.4]} 18... Qxa8 {[%clk 0:01:49.4]} 19. Rfd1 {[%clk 0:01:52.5]}
19... Qa6 {[%clk 0:01:24.5]} 20. Qc2 {[%clk 0:01:53.6]} 20... Nd7 {[%clk
0:01:21.6]} 21. a5 {[%clk 0:01:54.8]} 21... Rb8 {[%clk 0:01:08.3]} 22. Qa4
{[%clk 0:01:55.9]} 22... Rb7 {[%clk 0:00:49.6]} 23. Qc6 {[%clk 0:01:54]} 23...
Qa8 {[%clk 0:00:19.3]} 24. Nxd6 {[%clk 0:01:45.4]} 24... Ra7 {[%clk 0:00:15.8]}
25. Qxa8+ {[%clk 0:01:46.7]} 25... Rxa8 {[%clk 0:00:17.7]} 26. a6 {[%clk
0:01:48.6]} 26... e4 {[%clk 0:00:16.9]} 27. Nc4 {[%clk 0:01:39.5]} 27... Bd4
{[%clk 0:00:12.4]} 28. a7 {[%clk 0:01:38.2]} 28... f5 {[%clk 0:00:11.2]} 29. Ra6
{[%clk 0:01:30.6]} 29... Kf7 {[%clk 0:00:07.8]} 30. b4 {[%clk 0:01:31.8]} 1-0

[Event "*** Titled Tuesday Blitz"]
[Site "Chess.com"]
[Date "2019.07.02"]
[Round "2"]
[White "Er_is_geen_hoop_meer"]
[Black "sebsep"]
[Result "1-0"]
[WhiteElo "2313"]
[BlackElo "2141"]
[TimeControl "180+2"]
[EndTime "13:22:31 PDT"]
[Termination "Er_is_geen_hoop_meer won by resignation"]

1. c4 {[%clk 0:03:01.9]} 1... c5 {[%clk 0:02:59.5]} 2. g3 {[%clk 0:03:02.3]}
2... g6 {[%clk 0:03:00.4]} 3. Bg2 {[%clk 0:03:03.5]} 3... Bg7 {[%clk 0:03:01.9]}
4. Nc3 {[%clk 0:03:05.4]} 4... Nc6 {[%clk 0:03:03]} 5. e4 {[%clk 0:03:06.7]}
5... e6 {[%clk 0:03:04]} 6. Nge2 {[%clk 0:03:08.2]} 6... Nge7 {[%clk 0:03:05.5]}
7. O-O {[%clk 0:03:09.6]} 7... d6 {[%clk 0:03:07.1]} 8. d3 {[%clk 0:03:09.1]}
8... O-O {[%clk 0:03:08.1]} 9. Be3 {[%clk 0:03:10.5]} 9... Nd4 {[%clk
0:03:09.6]} 10. Qd2 {[%clk 0:03:11.5]} 10... Nec6 {[%clk 0:03:08.2]} 11. f4
{[%clk 0:03:06.1]} 11... a6 {[%clk 0:03:04.5]} 12. g4 {[%clk 0:03:02.3]} 12...
f5 {[%clk 0:03:05.3]} 13. exf5 {[%clk 0:03:01.3]} 13... gxf5 {[%clk 0:03:04.4]}
14. g5 {[%clk 0:03:02.7]} 14... Rb8 {[%clk 0:03:01.8]} 15. a4 {[%clk 0:03:00]}
15... Qa5 {[%clk 0:02:41.3]} 16. Rad1 {[%clk 0:02:50.1]} 16... Nxe2+ {[%clk
0:02:21.7]} 17. Qxe2 {[%clk 0:02:46.6]} 17... Nd4 {[%clk 0:02:22]} 18. Qh5
{[%clk 0:02:47.2]} 18... b5 {[%clk 0:02:11.1]} 19. axb5 {[%clk 0:02:46.8]} 19...
axb5 {[%clk 0:02:11.7]} 20. cxb5 {[%clk 0:02:48.1]} 20... Nxb5 {[%clk
0:02:00.5]} 21. Nd5 {[%clk 0:02:47]} 21... exd5 {[%clk 0:01:42.9]} 22. Bxd5+
{[%clk 0:02:48.9]} 22... Kh8 {[%clk 0:01:44.3]} 23. Rf3 {[%clk 0:02:50.6]} 23...
Qa7 {[%clk 0:01:30.3]} 24. Rh3 {[%clk 0:02:50.1]} 24... Bd4 {[%clk 0:01:07.7]}
25. Bxd4+ {[%clk 0:02:51.1]} 25... Nxd4 {[%clk 0:01:05.5]} 26. g6 {[%clk
0:02:53]} 26... Rb7 {[%clk 0:00:58.6]} 27. Bxb7 {[%clk 0:02:53.2]} 27... Qxb7
{[%clk 0:01:00.5]} 28. Qh6 {[%clk 0:02:30.4]} 28... Qg7 {[%clk 0:00:56.9]} 29.
Qxh7+ {[%clk 0:02:26.8]} 29... Qxh7 {[%clk 0:00:57.7]} 30. Rxh7+ {[%clk
0:02:28.7]} 30... Kg8 {[%clk 0:00:59.6]} 31. Ra1 {[%clk 0:02:29.1]} 31... Rf6
{[%clk 0:00:48.1]} 32. Rc7 {[%clk 0:02:27.8]} 32... Rxg6+ {[%clk 0:00:16.9]} 33.
Kf2 {[%clk 0:02:29.1]} 33... Rf6 {[%clk 0:00:09]} 34. Ra8 {[%clk 0:02:29.7]}
34... Rf8 {[%clk 0:00:09]} 35. Rcxc8 {[%clk 0:02:31]} 35... Rxc8 {[%clk
0:00:10.7]} 36. Rxc8+ {[%clk 0:02:32.9]} 36... Kf7 {[%clk 0:00:12]} 37. Rd8
{[%clk 0:02:33.8]} 37... Ke6 {[%clk 0:00:13.9]} 38. h4 {[%clk 0:02:33.6]} 38...
Nc6 {[%clk 0:00:14.2]} 39. Rc8 {[%clk 0:02:33.4]} 39... Ne7 {[%clk 0:00:14.2]}
40. Rh8 {[%clk 0:02:33.7]} 40... Nd5 {[%clk 0:00:14]} 41. Kf3 {[%clk 0:02:34.4]}
41... Nf6 {[%clk 0:00:15.4]} 42. h5 {[%clk 0:02:34.9]} 42... Ng4 {[%clk
0:00:15.9]} 43. Rg8 {[%clk 0:02:33.2]} 43... Nf6 {[%clk 0:00:15.5]} 44. Rg5
{[%clk 0:02:32.1]} 44... d5 {[%clk 0:00:16.6]} 45. h6 {[%clk 0:02:32.7]} 45...
c4 {[%clk 0:00:17.3]} 46. dxc4 {[%clk 0:02:33.5]} 46... dxc4 {[%clk 0:00:18.7]}
47. Ke3 {[%clk 0:02:34.9]} 47... Kf7 {[%clk 0:00:19.9]} 48. Rxf5 {[%clk
0:02:35.7]} 48... Kg6 {[%clk 0:00:21.4]} 49. Rxf6+ {[%clk 0:02:37.1]} 49... Kxf6
{[%clk 0:00:22.7]} 50. f5 {[%clk 0:02:38.7]} 1-0

[Event "*** Titled Tuesday Blitz"]
[Site "Chess.com"]
[Date "2019.07.02"]
[Round "2"]
[White "oskariot"]
[Black "David_Paravyan"]
[Result "0-1"]
[WhiteElo "2600"]
[BlackElo "2866"]
[TimeControl "180+2"]
[EndTime "13:22:42 PDT"]
[Termination "David_Paravyan won by resignation"]

1. Nf3 {[%clk 0:03:01.9]} 1... d5 {[%clk 0:02:57.4]} 2. c4 {[%clk 0:03:03.5]}
2... e6 {[%clk 0:02:58.1]} 3. g3 {[%clk 0:03:04.4]} 3... Nf6 {[%clk 0:02:59.4]}
4. b3 {[%clk 0:03:05.5]} 4... d4 {[%clk 0:03:00.5]} 5. Bg2 {[%clk 0:03:06.3]}
5... Nc6 {[%clk 0:03:01.2]} 6. O-O {[%clk 0:03:07.3]} 6... e5 {[%clk 0:03:02.6]}
7. d3 {[%clk 0:03:07.4]} 7... a5 {[%clk 0:03:03.3]} 8. e3 {[%clk 0:03:06]} 8...
Bc5 {[%clk 0:03:00.7]} 9. Ba3 {[%clk 0:02:52.1]} 9... Qd6 {[%clk 0:02:35.7]} 10.
Bxc5 {[%clk 0:02:25.7]} 10... Qxc5 {[%clk 0:02:37.6]} 11. exd4 {[%clk 0:02:27]}
11... Nxd4 {[%clk 0:02:39.2]} 12. Nxe5 {[%clk 0:02:20.9]} 12... O-O {[%clk
0:02:34.6]} 13. Nf3 {[%clk 0:02:06.8]} 13... Bg4 {[%clk 0:02:35.5]} 14. Nbd2
{[%clk 0:02:02.2]} 14... Qh5 {[%clk 0:02:24.6]} 15. Re1 {[%clk 0:01:37.8]} 15...
Rfe8 {[%clk 0:02:19.9]} 16. Re3 {[%clk 0:01:35.3]} 16... Rad8 {[%clk 0:02:17.7]}
17. Rc1 {[%clk 0:00:41.1]} 17... Qc5 {[%clk 0:02:18]} 18. Qe1 {[%clk 0:00:31.2]}
18... Nxf3+ {[%clk 0:02:07.4]} 19. Bxf3 {[%clk 0:00:27.6]} 19... Bxf3 {[%clk
0:02:04.9]} 20. Nxf3 {[%clk 0:00:22.4]} 20... Rxe3 {[%clk 0:02:06.3]} 21. Qxe3
{[%clk 0:00:21.2]} 21... Qxe3 {[%clk 0:02:07.7]} 22. fxe3 {[%clk 0:00:23.1]}
22... Rxd3 {[%clk 0:02:09.2]} 23. Re1 {[%clk 0:00:21.5]} 23... Ng4 {[%clk
0:02:06.2]} 24. h3 {[%clk 0:00:21.5]} 24... Nf6 {[%clk 0:01:50.7]} 25. Kf2
{[%clk 0:00:22.5]} 25... Ne4+ {[%clk 0:01:49.1]} 26. Ke2 {[%clk 0:00:23.9]}
26... Rd6 {[%clk 0:01:47.4]} 27. g4 {[%clk 0:00:24.1]} 27... b6 {[%clk
0:01:41.4]} 28. Rc1 {[%clk 0:00:25.1]} 28... Kf8 {[%clk 0:01:36]} 29. Nd4 {[%clk
0:00:25.8]} 29... Rf6 {[%clk 0:01:34.7]} 30. Nf3 {[%clk 0:00:23.4]} 30... Rd6
{[%clk 0:01:32.6]} 31. Nd4 {[%clk 0:00:23.9]} 31... Rh6 {[%clk 0:01:33.2]} 32.
Nb5 {[%clk 0:00:22.6]} 32... c6 {[%clk 0:01:32.2]} 33. Nd4 {[%clk 0:00:15.1]}
33... c5 {[%clk 0:01:29.4]} 34. Nf5 {[%clk 0:00:16.2]} 34... Rxh3 {[%clk
0:01:30.5]} 35. Rd1 {[%clk 0:00:17.6]} 35... Nc3+ {[%clk 0:01:31.6]} 0-1

[Event "*** Titled Tuesday Blitz"]
[Site "Chess.com"]
[Date "2019.07.02"]
[Round "2"]
[White "konradrutkowski"]
[Black "Colombiano07"]
[Result "0-1"]
[WhiteElo "2237"]
[BlackElo "2160"]
[TimeControl "180+2"]
[EndTime "13:22:46 PDT"]
[Termination "Colombiano07 won by resignation"]

1. e4 {[%clk 0:03:01.9]} 1... c5 {[%clk 0:03:00.3]} 2. Nf3 {[%clk 0:03:02.9]}
2... Nc6 {[%clk 0:03:00.3]} 3. Bb5 {[%clk 0:03:02.9]} 3... d6 {[%clk 0:02:59]}
4. O-O {[%clk 0:03:03.7]} 4... Bd7 {[%clk 0:03:00.3]} 5. Re1 {[%clk 0:03:03.3]}
5... e5 {[%clk 0:03:01.3]} 6. c3 {[%clk 0:03:04.4]} 6... Nf6 {[%clk 0:03:00.6]}
7. Na3 {[%clk 0:03:03.2]} 7... Be7 {[%clk 0:03:01.2]} 8. Nc2 {[%clk 0:03:04.2]}
8... O-O {[%clk 0:03:03.1]} 9. d4 {[%clk 0:03:04.4]} 9... cxd4 {[%clk 0:03:05]}
10. cxd4 {[%clk 0:03:05.2]} 10... a6 {[%clk 0:03:04.2]} 11. Bf1 {[%clk
0:03:04.1]} 11... Rc8 {[%clk 0:03:03.7]} 12. h3 {[%clk 0:03:04.2]} 12... b5
{[%clk 0:03:03.9]} 13. Bd2 {[%clk 0:02:59.8]} 13... Re8 {[%clk 0:03:04.7]} 14.
Rc1 {[%clk 0:02:59.5]} 14... Bf8 {[%clk 0:03:05.9]} 15. d5 {[%clk 0:02:59.9]}
15... Ne7 {[%clk 0:03:06.4]} 16. Bb4 {[%clk 0:02:54.7]} 16... Ng6 {[%clk
0:03:06.8]} 17. Qd2 {[%clk 0:02:53.6]} 17... Qb6 {[%clk 0:03:05.1]} 18. Ba5
{[%clk 0:02:53.2]} 18... Qa7 {[%clk 0:03:05.4]} 19. Nb4 {[%clk 0:02:51.9]} 19...
Rxc1 {[%clk 0:03:01.7]} 20. Qxc1 {[%clk 0:02:52.1]} 20... Nf4 {[%clk 0:02:58.2]}
21. Nd2 {[%clk 0:02:41.1]} 21... Rc8 {[%clk 0:02:52.9]} 22. Qd1 {[%clk
0:02:41.8]} 22... Qd4 {[%clk 0:02:48]} 23. b3 {[%clk 0:02:32.4]} 23... Be7
{[%clk 0:02:43.2]} 24. Re3 {[%clk 0:02:22.7]} 24... Bd8 {[%clk 0:02:28.8]} 25.
Bxd8 {[%clk 0:02:22.1]} 25... Rxd8 {[%clk 0:02:29.9]} 26. Nc6 {[%clk 0:02:19]}
26... Bxc6 {[%clk 0:02:29.4]} 27. dxc6 {[%clk 0:02:20.9]} 27... Rc8 {[%clk
0:02:27.1]} 28. g3 {[%clk 0:02:21.9]} 28... Ne6 {[%clk 0:02:26]} 29. Rd3 {[%clk
0:02:21.9]} 29... Qc5 {[%clk 0:02:21.2]} 30. Bg2 {[%clk 0:02:18.4]} 30... Rxc6
{[%clk 0:02:19.8]} 31. Nf1 {[%clk 0:02:19.8]} 31... Nd4 {[%clk 0:02:18.1]} 32.
Ne3 {[%clk 0:02:17.5]} 32... Qc1 {[%clk 0:02:11.3]} 33. Kh2 {[%clk 0:02:16.1]}
33... Qxd1 {[%clk 0:02:10.8]} 34. Rxd1 {[%clk 0:02:18]} 34... a5 {[%clk
0:02:04.6]} 35. f4 {[%clk 0:02:18.1]} 35... a4 {[%clk 0:02:05.3]} 36. f5 {[%clk
0:02:14.4]} 36... axb3 {[%clk 0:01:59]} 37. axb3 {[%clk 0:02:14.9]} 37... Nxb3
{[%clk 0:02:00.9]} 38. g4 {[%clk 0:02:11.6]} 38... h6 {[%clk 0:01:57.5]} 39. h4
{[%clk 0:02:12.6]} 39... Rc3 {[%clk 0:01:56.6]} 40. g5 {[%clk 0:02:08.5]} 40...
Rxe3 {[%clk 0:01:53.4]} 41. gxf6 {[%clk 0:02:09.5]} 41... Nd4 {[%clk 0:01:55.3]}
42. fxg7 {[%clk 0:02:08.6]} 42... Kxg7 {[%clk 0:01:55.1]} 43. Ra1 {[%clk
0:02:03.5]} 43... b4 {[%clk 0:01:52.5]} 44. Ra6 {[%clk 0:02:04.5]} 44... Rd3
{[%clk 0:01:50.7]} 45. f6+ {[%clk 0:02:01.2]} 45... Kxf6 {[%clk 0:01:50]} 46.
Rxd6+ {[%clk 0:02:02.8]} 46... Ke7 {[%clk 0:01:51.9]} 47. Rxh6 {[%clk
0:02:03.5]} 47... Ne6 {[%clk 0:01:51.9]} 48. Rh8 {[%clk 0:02:01.7]} 48... Rd8
{[%clk 0:01:51.5]} 49. Rh5 {[%clk 0:01:59.8]} 49... Rb8 {[%clk 0:01:40.6]} 50.
Rxe5 {[%clk 0:01:54.3]} 50... b3 {[%clk 0:01:40.1]} 51. Bf1 {[%clk 0:01:55.8]}
51... b2 {[%clk 0:01:40.5]} 52. Bd3 {[%clk 0:01:57.4]} 52... b1=Q {[%clk
0:01:42.4]} 53. Bxb1 {[%clk 0:01:58.5]} 53... Rxb1 {[%clk 0:01:44.3]} 54. Kg3
{[%clk 0:01:59.7]} 54... Kf6 {[%clk 0:01:43.2]} 55. Rf5+ {[%clk 0:02:00]} 55...
Kg6 {[%clk 0:01:44.8]} 56. h5+ {[%clk 0:02:00.6]} 56... Kg7 {[%clk 0:01:44.9]}
57. h6+ {[%clk 0:02:01.3]} 57... Kg6 {[%clk 0:01:45.6]} 58. h7 {[%clk
0:01:58.5]} 58... Rh1 {[%clk 0:01:46.5]} 0-1

[Event "*** Titled Tuesday Blitz"]
[Site "Chess.com"]
[Date "2019.07.02"]
[Round "2"]
[White "maximnovik"]
[Black "IveBeenThroughPain"]
[Result "1-0"]
[WhiteElo "2452"]
[BlackElo "2296"]
[TimeControl "180+2"]
[EndTime "13:22:48 PDT"]
[Termination "maximnovik won by resignation"]

1. d4 {[%clk 0:02:58.3]} 1... d5 {[%clk 0:02:59.1]} 2. Bf4 {[%clk 0:02:58.9]}
2... Nf6 {[%clk 0:03:00]} 3. e3 {[%clk 0:02:59.8]} 3... c5 {[%clk 0:03:01.4]} 4.
c3 {[%clk 0:03:00.8]} 4... Nc6 {[%clk 0:03:02.8]} 5. Nd2 {[%clk 0:03:01.3]} 5...
cxd4 {[%clk 0:03:04.5]} 6. exd4 {[%clk 0:03:01.7]} 6... Bf5 {[%clk 0:03:06.2]}
7. Qb3 {[%clk 0:03:01.5]} 7... Qc8 {[%clk 0:03:06.8]} 8. Ngf3 {[%clk 0:03:02.3]}
8... e6 {[%clk 0:03:07.8]} 9. Nh4 {[%clk 0:03:01.5]} 9... Be4 {[%clk 0:03:07.8]}
10. f3 {[%clk 0:03:00.4]} 10... Bg6 {[%clk 0:03:08.7]} 11. Nxg6 {[%clk
0:03:00.3]} 11... hxg6 {[%clk 0:03:10.3]} 12. Bd3 {[%clk 0:03:00.8]} 12... Be7
{[%clk 0:03:11.8]} 13. Qc2 {[%clk 0:02:51.4]} 13... Qd7 {[%clk 0:03:06]} 14.
O-O-O {[%clk 0:02:47.6]} 14... Rc8 {[%clk 0:03:06.6]} 15. Nb3 {[%clk 0:02:34.4]}
15... Nb4 {[%clk 0:03:04.2]} 16. Qb1 {[%clk 0:02:31.2]} 16... Qa4 {[%clk
0:03:05.4]} 17. Kd2 {[%clk 0:02:16.8]} 17... Nxa2 {[%clk 0:02:59.7]} 18. Bc2
{[%clk 0:02:10.4]} 18... Qa6 {[%clk 0:02:42.4]} 19. Qa1 {[%clk 0:01:42.9]} 19...
g5 {[%clk 0:02:07]} 20. Be3 {[%clk 0:01:33.4]} 20... Nb4 {[%clk 0:01:46.8]} 21.
cxb4 {[%clk 0:01:28.4]} 21... Bxb4+ {[%clk 0:01:47.8]} 22. Kc1 {[%clk
0:01:28.4]} 22... Qc4 {[%clk 0:01:49]} 23. Nc5 {[%clk 0:00:59.6]} 23... b6
{[%clk 0:01:39.6]} 24. Qa4+ {[%clk 0:00:54.3]} 24... Kf8 {[%clk 0:01:38.6]} 25.
b3 {[%clk 0:00:46.7]} 25... Qc3 {[%clk 0:01:36.9]} 26. Bd2 {[%clk 0:00:46.4]}
26... Qxd4 {[%clk 0:01:29.1]} 27. Bxb4 {[%clk 0:00:47.1]} 27... Qf4+ {[%clk
0:01:24.1]} 28. Bd2 {[%clk 0:00:44.8]} 28... Qxa4 {[%clk 0:01:23.6]} 29. Nxa4
{[%clk 0:00:45.4]} 29... b5 {[%clk 0:01:16.5]} 30. Bb4+ {[%clk 0:00:38.9]} 30...
Kg8 {[%clk 0:01:15.9]} 31. Nc3 {[%clk 0:00:38.4]} 31... a6 {[%clk 0:01:15.4]}
32. Kb2 {[%clk 0:00:38.7]} 32... g6 {[%clk 0:01:16.4]} 33. Ne2 {[%clk 0:00:38]}
33... Kg7 {[%clk 0:01:14.4]} 34. Bc3 {[%clk 0:00:37.8]} 34... Rc7 {[%clk
0:01:13.7]} 35. Be5 {[%clk 0:00:38.2]} 35... Rc6 {[%clk 0:01:13.9]} 36. Bd3
{[%clk 0:00:39]} 36... Rhc8 {[%clk 0:01:14.3]} 37. Rc1 {[%clk 0:00:40.1]} 1-0